bitfinex-derivatives/quotes_BTCF0:USTF0_20251002
["timestamp","ask_amount","ask_price","bid_price","bid_amount"]
[1759430370418,0.78676617,120210.0,120200.0,0.01332]
[1759430370714,0.78676617,120210.0,120200.0,0.0964707]
[1759430370908,1.54100617,120210.0,120200.0,0.1177407]
[1759430372316,0.78676617,120210.0,120200.0,0.1177407]
[1759430372612,0.70362227,120210.0,120200.0,0.1177407]
[1759430372813,0.02197804,120210.0,120200.0,0.1177407]
[1759430373011,1.11508,120210.0,120200.0,0.1177407]
[1759430373314,1.54104597,120210.0,120200.0,0.1177406]
[1759430374010,1.8618902,120210.0,120200.0,0.0964706]
[1759430376315,1.8618902,120210.0,120200.0,0.0831506]
[1759430376516,2.2618902,120210.0,120200.0,0.0831506]
[1759430376817,0.0831539,120200.0,120190.0,0.0831532]
[1759430377011,0.4439539,120200.0,120190.0,0.0831532]
[1759430377211,1.51911813,120200.0,120190.0,0.1178732]
[1759430377411,1.51911813,120200.0,120190.0,0.0966032]
[1759430377812,0.76479813,120200.0,120190.0,0.0831532]
[1759430378110,1.51919813,120200.0,120190.0,0.0831532]
[1759430378318,1.51919813,120200.0,120190.0,0.0966032]
[1759430378512,1.58667166,120200.0,120190.0,0.0966032]
[1759430378908,1.50351776,120200.0,120190.0,0.1178732]
[1759430379117,0.74911776,120200.0,120190.0,0.1178732]
[1759430379320,1.50347776,120200.0,120190.0,0.1178732]
[1759430379624,1.50343776,120200.0,120190.0,0.1178732]
[1759430380119,1.58658836,120200.0,120190.0,0.1178732]
[1759430381022,0.74911776,120200.0,120190.0,0.1178732]
[1759430381216,1.50343776,120200.0,120190.0,0.1178732]
[1759430381520,1.58658836,120200.0,120190.0,0.1178732]
[1759430382222,0.74911776,120200.0,120190.0,0.1178732]
[1759430382422,1.50347776,120200.0,120190.0,0.1178732]
[1759430383309,0.74911776,120200.0,120190.0,0.1178732]
[1759430383715,1.50347776,120200.0,120190.0,0.1178732]
[1759430385719,1.18263353,120200.0,120190.0,0.1178732]
[1759430385917,1.50347776,120200.0,120190.0,0.1178732]
[1759430386113,0.74911776,120200.0,120190.0,0.1178732]
[1759430386319,0.83226846,120200.0,120190.0,0.1178732]
[1759430386518,1.58662846,120200.0,120190.0,0.1178732]
[1759430389536,0.83226846,120200.0,120190.0,0.1178732]
[1759430389838,0.74911776,120200.0,120190.0,0.1178732]
[1759430390037,0.42827353,120200.0,120190.0,0.83871743]
[1759430390338,1.18267353,120200.0,120190.0,0.83871743]
[1759430390836,0.42827353,120200.0,120190.0,0.83871743]
[1759430391027,0.42827353,120200.0,120190.0,0.5178732]
[1759430391225,0.42827353,120200.0,120190.0,0.83871743]
[1759430391226,1.18267353,120200.0,120190.0,0.83871743]
[1759430392741,1.18267353,120200.0,120190.0,0.5178732]
[1759430392938,0.42827353,120200.0,120190.0,0.5178732]
[1759430393246,1.18267353,120200.0,120190.0,0.5178732]
[1759430393436,0.42827353,120200.0,120190.0,0.5178732]
[1759430393636,1.18267353,120200.0,120190.0,0.83871743]
[1759430393842,0.42827353,120200.0,120190.0,0.83871743]
[1759430394046,1.18267353,120200.0,120190.0,0.83871743]
[1759430394541,0.82187353,120200.0,120190.0,0.83871743]
[1759430399841,0.06747353,120200.0,120190.0,0.83871743]
[1759430400042,0.68164423,120210.0,120190.0,0.83871743]
[1759430400241,0.02232864,120230.0,120220.0,0.1191267]
[1759430400442,0.43714446,120240.0,120230.0,0.1191198]
[1759430400742,1.47935159,120240.0,120230.0,0.01281]
[1759430400938,1.15850736,120240.0,120230.0,0.03599]
[1759430401342,1.47935159,120240.0,120230.0,0.03599]
[1759430402147,1.47935159,120240.0,120230.0,0.11912]
[1759430402638,1.07538446,120240.0,120230.0,0.11912]
[1759430402838,1.39622869,120240.0,120230.0,0.11912]
[1759430403338,1.47935179,120240.0,120230.0,0.11912]
[1759430403742,1.47935179,120240.0,120230.0,0.03599]
[1759430404044,0.08313,120230.0,120220.0,0.1191239]
[1759430404244,0.76477423,120230.0,120220.0,0.1191239]
[1759430404447,0.76477423,120230.0,120220.0,0.0959439]
[1759430404843,1.16477423,120230.0,120220.0,0.0959439]
[1759430405041,1.16477423,120230.0,120210.0,0.0959498]
[1759430405348,1.43596423,120220.0,120210.0,0.0831398]
[1759430405934,1.51910113,120220.0,120210.0,0.0831398]
[1759430406143,1.51910113,120220.0,120210.0,0.0959498]
[1759430409548,1.51910113,120220.0,120210.0,0.1191298]
[1759430410148,0.76478113,120220.0,120210.0,0.1191298]
[1759430410450,1.51906113,120220.0,120210.0,0.1191298]
[1759430411950,0.76478113,120220.0,120210.0,0.1191298]
[1759430412146,1.51906113,120220.0,120210.0,0.1191298]
[1759430412452,1.54086207,120220.0,120210.0,0.1191298]
[1759430413548,0.78658207,120220.0,120210.0,0.1191298]
[1759430413746,1.54086207,120220.0,120210.0,0.1191298]
[1759430413940,0.78658207,120220.0,120210.0,0.1191298]
[1759430414146,1.13688094,120220.0,120210.0,0.1191298]
[1759430414345,0.68164423,120220.0,120210.0,0.1191298]
[1759430414542,1.51906113,120220.0,120210.0,0.1191298]
[1759430415352,1.1982169,120220.0,120210.0,0.1191298]
[1759430415753,1.51906113,120220.0,120210.0,0.1191298]
[1759430416255,1.54086661,120220.0,120210.0,0.1191298]
[1759430416749,1.51906113,120220.0,120210.0,0.1191298]
[1759430418455,0.76478113,120220.0,120210.0,0.1191298]
[1759430418942,1.51906113,120220.0,120210.0,0.1191298]
[1759430420759,1.54087586,120220.0,120210.0,0.1191298]
[1759430422453,1.86206201,120220.0,120210.0,0.1191298]
[1759430425049,1.10778201,120220.0,120210.0,0.1191298]
[1759430425255,1.86206201,120220.0,120210.0,0.1191298]
[1759430429257,1.86206201,120220.0,120210.0,0.0959538]
[1759430429556,1.86206201,120220.0,120200.0,0.0959575]
[1759430429557,0.0831438,120210.0,120200.0,0.0959575]
[1759430429857,1.08597418,120210.0,120200.0,0.0959575]
[1759430430053,0.76495899,120210.0,120200.0,0.0959575]
[1759430430454,0.78679016,120210.0,120200.0,0.0959575]
[1759430430758,1.54103016,120210.0,120200.0,0.1175175]
[1759430433459,1.22001497,120210.0,120200.0,0.1175175]
[1759430433659,1.54103016,120210.0,120200.0,0.1175175]
[1759430435261,0.70364636,120210.0,120200.0,0.1175175]
[1759430435460,1.45788636,120210.0,120200.0,0.1175175]
[1759430435660,1.54103016,120210.0,120200.0,0.1175175]
[1759430436054,0.78679016,120210.0,120200.0,0.1175175]
[1759430436254,1.54103016,120210.0,120200.0,0.1175175]
[1759430436455,0.78679016,120210.0,120200.0,0.1175175]
[1759430436756,1.54103016,120210.0,120200.0,0.1175175]
[1759430438466,1.51919899,120210.0,120200.0,0.1175175]
[1759430441161,0.76495899,120210.0,120200.0,0.1175175]
[1759430441362,0.4439438,120210.0,120200.0,0.1175175]
[1759430441562,1.1981838,120210.0,120200.0,0.1175175]
[1759430442063,1.51919899,120210.0,120200.0,0.1175175]
[1759430443665,1.54098574,120210.0,120200.0,0.1175175]
[1759430444365,1.51919899,120210.0,120200.0,0.1175175]
[1759430444566,0.68181519,120210.0,120200.0,0.43853269]
[1759430444766,0.3608,120210.0,120200.0,1.15954788]
[1759430444963,1.11504,120210.0,120200.0,1.15954788]
[1759430445365,1.43605519,120210.0,120200.0,0.83853269]
[1759430445865,1.43605519,120210.0,120200.0,0.5175175]
[1759430446055,1.43605519,120210.0,120200.0,0.83853269]
[1759430446260,1.43605519,120210.0,120200.0,0.5175175]
[1759430446459,1.43605519,120210.0,120200.0,0.83853269]
[1759430449661,1.43605519,120210.0,120200.0,0.5175175]
[1759430449863,1.51919899,120210.0,120200.0,0.1175175]
[1759430450366,1.51919899,120210.0,120200.0,0.0959575]
[1759430450862,1.1981838,120210.0,120200.0,0.0959575]
[1759430451066,1.51919899,120210.0,120200.0,0.1175175]
[1759430451268,1.51919899,120210.0,120200.0,0.0959575]
[1759430452469,1.84021418,120210.0,120200.0,0.0959575]
[1759430452669,1.1981838,120210.0,120200.0,0.0959575]
[1759430452967,1.84021418,120210.0,120200.0,0.0959575]
[1759430453170,0.083151,120200.0,120190.0,0.0959642]
[1759430453365,1.08598138,120200.0,120190.0,0.01281]
[1759430453570,1.10777699,120200.0,120190.0,0.01281]
[1759430453968,1.08598138,120200.0,120190.0,0.01281]
[1759430454276,0.443951,120200.0,120190.0,0.0959679]
[1759430454463,1.08598138,120200.0,120190.0,0.0959679]
[1759430454868,1.10798469,120200.0,120190.0,0.0959679]
[1759430455069,1.08598138,120200.0,120190.0,0.0959679]
[1759430455269,1.15265015,120200.0,120190.0,0.0959679]
[1759430456569,1.17464238,120200.0,120190.0,0.1175279]
[1759430457268,1.17464238,120200.0,120190.0,0.0959679]
[1759430457675,0.532612,120200.0,120190.0,0.0959679]
[1759430457876,1.17464238,120200.0,120190.0,0.0959679]
[1759430459872,1.17464238,120200.0,120190.0,0.0831579]
[1759430460174,0.083158,120190.0,120180.0,0.0357]
[1759430460378,0.0831649,120180.0,120170.0,0.01354]
[1759430460575,0.0831718,120170.0,120160.0,0.03650079]
[1759430460773,1.51922699,120170.0,120160.0,0.03650079]
[1759430461078,1.84024218,120170.0,120160.0,0.01361079]
[1759430461478,1.51918699,120170.0,120160.0,0.09678949]
[1759430461679,0.3608,120170.0,120160.0,0.11967949]
[1759430461876,1.43605519,120170.0,120160.0,0.44069468]
[1759430462074,0.3608,120170.0,120160.0,0.51967949]
[1759430462281,0.76497999,120180.0,120170.0,0.1200017]
[1759430462482,0.39123581,120180.0,120170.0,0.44101689]
[1759430462680,0.36926999,120180.0,120170.0,0.44101689]
[1759430462976,1.12350999,120180.0,120170.0,0.44101689]
[1759430463180,1.11504,120180.0,120170.0,0.44101689]
[1759430463877,1.1982048,120180.0,120170.0,0.44101689]
[1759430464075,1.51921999,120180.0,120170.0,0.35784519]
[1759430464280,1.88001999,120180.0,120170.0,0.44101689]
[1759430464475,1.88001999,120180.0,120170.0,0.1200017]
[1759430464675,2.20103518,120180.0,120170.0,0.03683]
[1759430465376,1.88001999,120180.0,120170.0,0.03683]
[1759430465685,2.20103518,120180.0,120170.0,0.1200017]
[1759430465979,1.88001999,120180.0,120170.0,0.1200017]
[1759430467783,1.88836075,120180.0,120170.0,0.1200017]
[1759430471274,1.88844075,120180.0,120170.0,0.1200017]
[1759430471476,1.88844075,120180.0,120170.0,0.44101689]
[1759430472384,1.13412075,120180.0,120170.0,0.44101689]
[1759430472680,0.00834076,120180.0,120170.0,0.44101689]
[1759430472890,0.3608,120190.0,120180.0,0.1199948]
[1759430473081,0.3608,120190.0,120180.0,0.76202518]
[1759430473277,0.51062447,120200.0,120190.0,0.1199879]
[1759430473478,1.58595966,120200.0,120190.0,0.44100309]
[1759430474986,1.59409679,120200.0,120190.0,0.44100309]
[1759430475481,1.58595966,120200.0,120190.0,0.44100309]
[1759430476578,1.26490447,120200.0,120190.0,0.44100309]
[1759430476779,1.2731608,120200.0,120190.0,0.44100309]
[1759430477181,0.4357251,120200.0,120190.0,0.44100309]
[1759430477387,1.26489977,120200.0,120190.0,0.44100309]
[1759430478483,0.42746877,120200.0,120190.0,0.44100309]
[1759430478688,0.42746877,120200.0,120190.0,1.16201828]
[1759430478689,1.18174877,120200.0,120190.0,1.16201828]
[1759430478888,0.42746877,120200.0,120190.0,1.16201828]
[1759430479086,1.18174877,120200.0,120190.0,1.16201828]
[1759430479292,0.3608,120200.0,120190.0,1.16201828]
[1759430479486,0.36918053,120210.0,120200.0,0.119981]
[1759430479686,1.11508,120210.0,120200.0,0.76201138]
[1759430480791,1.1982242,120210.0,120200.0,0.76201138]
[1759430481889,1.1982242,120210.0,120200.0,0.44099619]
[1759430482193,1.1982242,120210.0,120200.0,0.119981]
[1759430482385,1.1982242,120210.0,120200.0,0.44097076]
[1759430483786,1.1982242,120210.0,120200.0,0.119981]
[1759430483987,1.1982242,120210.0,120200.0,0.44097076]
[1759430484391,1.1982242,120210.0,120200.0,0.119981]
[1759430484790,1.11508,120210.0,120200.0,0.44097076]
[1759430485492,1.1982242,120210.0,120200.0,0.44097076]
[1759430486491,1.1981442,120210.0,120200.0,0.44097076]
[1759430487491,1.51913396,120210.0,120200.0,0.01338]
[1759430487683,0.0831511,120200.0,120190.0,0.03658]
[1759430487886,0.083158,120190.0,120180.0,0.1197416]
[1759430488088,1.43598976,120190.0,120180.0,0.1197416]
[1759430489085,1.115,120190.0,120180.0,0.1197416]
[1759430489592,1.198158,120190.0,120180.0,0.1197416]
[1759430489983,1.18002475,120190.0,120180.0,0.1197416]
[1759430490189,1.50101451,120190.0,120180.0,0.0971016]
[1759430490490,1.18002475,120190.0,120180.0,0.1197416]
[1759430492995,1.58417251,120190.0,120180.0,0.1197416]
[1759430493194,1.58417251,120190.0,120180.0,0.03658]
[1759430493397,1.58417251,120190.0,120180.0,0.01394]
[1759430493696,1.26318275,120190.0,120180.0,0.03658]
[1759430493885,1.58417251,120190.0,120180.0,0.03658]
[1759430494088,0.42582475,120190.0,120180.0,0.1197449]
[1759430494288,0.42582475,120190.0,120180.0,0.44073466]
[1759430494793,1.18022475,120190.0,120180.0,0.44073466]
[1759430495094,0.42582475,120190.0,120180.0,0.44073466]
[1759430495293,1.18022475,120190.0,120180.0,0.1197449]
[1759430495494,0.42582475,120190.0,120180.0,0.1197449]
[1759430495696,1.18018475,120190.0,120180.0,0.1197449]
[1759430495999,1.26334275,120190.0,120180.0,0.1197449]
[1759430497687,1.26334275,120190.0,120180.0,0.03658]
[1759430497887,1.58433251,120190.0,120180.0,0.03658]
[1759430498898,1.58433251,120190.0,120180.0,0.01394]
[1759430499392,1.58433251,120190.0,120180.0,0.03658]
[1759430499597,1.58433251,120190.0,120180.0,0.01394]
[1759430499798,1.58433251,120190.0,120180.0,0.03658]
[1759430500395,1.58433251,120190.0,120170.0,0.1197485]
[1759430500603,0.4439649,120180.0,120170.0,0.1197518]
[1759430500795,0.4451227,120180.0,120170.0,0.0971118]
[1759430500988,0.76611246,120180.0,120170.0,0.0971118]
[1759430501787,0.76611246,120180.0,120170.0,0.1197518]
[1759430504205,1.52051246,120180.0,120170.0,0.1197518]
[1759430504803,1.52051246,120180.0,120170.0,0.0971118]
[1759430505102,1.1995227,120180.0,120170.0,0.0971118]
[1759430505302,1.1995227,120180.0,120170.0,0.01394]
[1759430505499,1.52051246,120180.0,120170.0,0.01394]
[1759430506003,1.52043246,120180.0,120170.0,0.01394]
[1759430507601,1.1994427,120180.0,120170.0,0.1197518]
[1759430507802,1.52039246,120180.0,120170.0,0.1197518]
[1759430509503,0.76611246,120180.0,120170.0,0.1197518]
[1759430509702,1.52039246,120180.0,120170.0,0.1197518]
[1759430510306,1.52039246,120180.0,120170.0,0.44074156]
[1759430510307,1.1162378,120180.0,120170.0,0.44074156]
[1759430510500,0.3619578,120180.0,120170.0,0.44074156]
[1759430510806,1.1162378,120180.0,120170.0,0.44074156]
[1759430511200,0.3619578,120180.0,120170.0,0.44074156]
[1759430511501,0.42582475,120190.0,120170.0,0.44074156]
[1759430511502,0.42582475,120190.0,120180.0,0.1191848]
[1759430511803,0.3608,120200.0,120190.0,0.1191779]
[1759430512002,1.18100434,120200.0,120190.0,0.1191779]
[1759430512201,1.18100434,120200.0,120190.0,0.44016766]
[1759430512505,1.11528,120200.0,120190.0,0.44016766]
[1759430512705,0.3608,120200.0,120190.0,0.44016766]
[1759430512898,1.1154,120200.0,120190.0,0.44016766]
[1759430515306,1.1154,120200.0,120190.0,0.1191779]
[1759430515508,1.1154,120200.0,120190.0,0.44016766]
[1759430516904,1.198551,120200.0,120190.0,0.44016776]
[1759430517107,1.198551,120200.0,120190.0,0.119178]
[1759430517307,1.51954076,120200.0,120190.0,0.119178]
[1759430517905,1.198551,120200.0,120190.0,0.119178]
[1759430518908,0.083158,120190.0,120180.0,0.01338]
[1759430519108,0.76494776,120190.0,120180.0,0.01338]
[1759430519409,0.0831649,120180.0,120170.0,0.1184567]
[1759430519609,1.1991249,120180.0,120170.0,0.1184567]
[1759430520406,1.92011466,120180.0,120160.0,0.09662359]
[1759430520607,0.76496156,120170.0,120160.0,0.11797359]
[1759430521311,0.4439718,120170.0,120160.0,0.11797359]
[1759430521705,0.68178976,120170.0,120160.0,0.11797359]
[1759430521902,1.11616,120170.0,120160.0,0.43896335]
[1759430522108,1.18143506,120170.0,120160.0,0.43896335]
[1759430522307,1.11612,120170.0,120160.0,0.83896335]
[1759430522508,1.11612,120170.0,120160.0,0.11797359]
[1759430522708,1.1992918,120170.0,120160.0,0.11797359]
[1759430523608,1.52028156,120170.0,120160.0,0.03480079]
[1759430523810,1.52028156,120170.0,120160.0,0.01345079]
[1759430524306,1.92881032,120170.0,120160.0,7.079e-05]
[1759430525106,1.95077226,120170.0,120160.0,7.079e-05]
[1759430525309,1.92881032,120170.0,120160.0,7.079e-05]
[1759430528714,1.99372614,120170.0,120160.0,7.079e-05]
[1759430530213,2.01566419,120170.0,120160.0,7.079e-05]
[1759430531611,0.93935443,120170.0,120160.0,7.079e-05]
[1759430531807,1.26034419,120170.0,120160.0,7.079e-05]
[1759430532013,2.01594419,120170.0,120160.0,0.01390079]
[1759430532211,1.26034419,120170.0,120160.0,0.01390079]
[1759430532410,2.01590419,120170.0,120160.0,0.01390079]
[1759430532803,1.26034419,120170.0,120160.0,0.09707949]
[1759430533006,1.27297638,120170.0,120160.0,0.11842949]
[1759430533416,1.59396614,120170.0,120160.0,0.11842949]
[1759430533918,1.27297638,120170.0,120160.0,0.11842949]
[1759430534110,0.74670558,120170.0,120160.0,0.11842949]
[1759430534313,0.3608,120170.0,120160.0,0.83941925]
[1759430534618,1.1996917,120170.0,120160.0,0.51842949]
[1759430535612,1.52068146,120170.0,120160.0,0.51842949]
[1759430537017,1.52076146,120170.0,120160.0,0.51842949]
[1759430537317,1.1996917,120170.0,120160.0,0.51842949]
[1759430537519,1.1996917,120170.0,120160.0,0.43525079]
[1759430537718,1.1996917,120170.0,120160.0,0.51842949]
[1759430538813,1.52068146,120170.0,120160.0,0.03525079]
[1759430540722,1.1996917,120170.0,120160.0,0.03525079]
[1759430540914,1.52068146,120170.0,120160.0,0.03525079]
[1759430542025,1.1996917,120170.0,120160.0,0.03525079]
[1759430542215,1.1996517,120170.0,120160.0,0.43941925]
[1759430542416,0.42714613,120170.0,120160.0,0.43941925]
[1759430542622,0.3608,120170.0,120160.0,0.83941925]
[1759430542824,1.11656,120170.0,120160.0,0.83941925]
[1759430543012,0.3608,120170.0,120160.0,0.83941925]
[1759430543427,1.11656,120170.0,120160.0,0.83941925]
[1759430543725,2.00903992,120170.0,120160.0,7.079e-05]
[1759430543914,0.0831856,120150.0,120140.0,0.01383]
[1759430544117,2.20564512,120150.0,120140.0,0.01383]
[1759430544317,0.0831926,120140.0,120130.0,0.03593]
[1759430544525,1.08682738,120140.0,120130.0,0.03593]
[1759430544919,1.08691295,120140.0,120130.0,0.01383]
[1759430545126,0.44407817,120140.0,120130.0,0.01383]
[1759430545325,1.08691295,120140.0,120130.0,0.01383]
[1759430545526,1.08691295,120140.0,120130.0,0.03593]
[1759430545527,0.44407817,120140.0,120130.0,0.03593]
[1759430545826,1.08691295,120140.0,120130.0,0.03593]
[1759430546221,0.84587746,120140.0,120130.0,0.03593]
[1759430550232,0.84587746,120140.0,120130.0,0.01383]
[1759430550827,0.0831995,120130.0,120120.0,0.01272]
[1759430551026,1.60447879,120130.0,120120.0,0.01272]
[1759430552628,1.67002181,120130.0,120120.0,0.01272]
[1759430553434,1.67818586,120130.0,120120.0,0.01272]
[1759430555335,0.91950586,120130.0,120120.0,0.01272]
[1759430555543,1.67798586,120130.0,120120.0,0.01272]
[1759430555842,1.67798586,120130.0,120120.0,0.03389]
[1759430556035,0.91950586,120130.0,120120.0,0.03389]
[1759430556235,1.67794586,120130.0,120120.0,0.03389]
[1759430556435,1.26798252,120130.0,120120.0,0.03389]
[1759430556837,1.66978181,120130.0,120120.0,0.03389]
[1759430557641,1.26798252,120130.0,120120.0,0.03389]
[1759430557837,0.50954252,120130.0,120120.0,0.03389]
[1759430558038,1.18466302,120130.0,120120.0,0.1170963]
[1759430558343,1.2023195,120130.0,120120.0,0.03389]
[1759430558542,0.0832064,120120.0,120110.0,0.1182104]
[1759430558841,0.3608,120120.0,120110.0,0.1182104]
[1759430559041,0.0832064,120120.0,120110.0,0.1182104]
[1759430559245,0.84580569,120120.0,120110.0,0.5182133]
[1759430560637,0.84580569,120120.0,120110.0,0.01383]
[1759430560846,0.0832133,120110.0,120100.0,0.1171083]
[1759430561043,1.60430122,120110.0,120100.0,0.1171083]
[1759430562843,1.52108792,120110.0,120100.0,0.01378]
[1759430563048,0.0832203,120100.0,120090.0,0.03495]
[1759430563252,0.84581959,120100.0,120090.0,0.03495]
[1759430563450,0.84581959,120100.0,120090.0,0.01378]
[1759430564349,0.84581959,120100.0,120090.0,0.03495]
[1759430564540,1.2027803,120100.0,120090.0,0.03495]
[1759430565043,0.3608,120100.0,120090.0,0.1181772]
[1759430565249,0.3608,120100.0,120090.0,0.91997649]
[1759430565549,1.08488,120100.0,120090.0,0.91997649]
[1759430565945,1.08488,120100.0,120090.0,0.5181772]
[1759430566150,1.08488,120100.0,120090.0,0.91997649]
[1759430566351,1.08488,120100.0,120090.0,0.5181772]
[1759430566751,0.0832271,120090.0,120080.0,0.03502909]
[1759430566943,0.86774091,120090.0,120080.0,0.01385909]
[1759430567144,0.46594162,120090.0,120080.0,0.03502909]
[1759430567347,1.62846091,120090.0,120080.0,0.03502909]
[1759430567754,1.62846091,120090.0,120080.0,0.01385909]
[1759430567955,1.62846091,120090.0,120080.0,7.909e-05]
[1759430568657,1.22666162,120090.0,120080.0,7.909e-05]
[1759430568953,1.62846091,120090.0,120080.0,7.909e-05]
[1759430570857,1.69535048,120090.0,120080.0,7.909e-05]
[1759430571648,0.93463048,120090.0,120080.0,0.08331319]
[1759430571853,1.69527048,120090.0,120080.0,7.909e-05]
[1759430572254,1.69526088,120090.0,120080.0,7.909e-05]
[1759430574060,1.69502088,120090.0,120080.0,0.09709319]
[1759430574265,0.93462088,120090.0,120080.0,0.11826319]
[1759430574461,0.44959449,120090.0,120080.0,0.11826319]
[1759430574664,0.82728957,120090.0,120080.0,0.51826319]
[1759430574861,1.27131667,120090.0,120080.0,0.43502909]
[1759430575058,1.60622639,120090.0,120080.0,0.01385909]
[1759430575360,1.60622639,120090.0,120080.0,7.909e-05]
[1759430575560,1.62809964,120090.0,120080.0,7.909e-05]
[1759430575761,1.62809964,120090.0,120080.0,0.01338909]
[1759430576255,1.86975813,120090.0,120080.0,0.01338909]
[1759430579163,1.93679419,120090.0,120080.0,7.909e-05]
[1759430579863,1.93679868,120090.0,120080.0,7.909e-05]
[1759430580962,1.17639868,120090.0,120080.0,7.909e-05]
[1759430581158,1.2934609,120090.0,120080.0,0.01338909]
[1759430581359,1.93691868,120090.0,120080.0,0.01338909]
[1759430581667,1.93691868,120090.0,120080.0,7.909e-05]
[1759430582553,1.2934609,120090.0,120080.0,7.909e-05]
[1759430582765,1.93691868,120090.0,120080.0,7.909e-05]
[1759430583864,1.93691868,120090.0,120080.0,0.01338909]
[1759430584161,1.17639868,120090.0,120080.0,0.01338909]
[1759430584363,1.93687868,120090.0,120080.0,0.01338909]
[1759430584564,1.17639868,120090.0,120080.0,0.01338909]
[1759430584753,1.93655868,120090.0,120080.0,0.01338909]
[1759430584953,1.17639868,120090.0,120080.0,0.01338909]
[1759430585461,1.93651868,120090.0,120080.0,0.01338909]
[1759430586663,0.85466979,120090.0,120080.0,0.01338909]
[1759430586862,1.93651868,120090.0,120080.0,0.03465909]
[1759430590166,1.2930609,120090.0,120080.0,0.03465909]
[1759430590353,0.85466979,120090.0,120080.0,0.43962208]
[1759430590556,0.5329409,120090.0,120080.0,0.83962208]
[1759430590757,1.25366979,120090.0,120080.0,0.83962208]
[1759430590952,1.61446979,120090.0,120080.0,0.83962208]
[1759430591157,1.61446979,120090.0,120080.0,0.51789319]
[1759430591560,1.2927409,120090.0,120080.0,0.83962208]
[1759430591756,1.61446979,120090.0,120080.0,0.83962208]
[1759430591965,1.61446979,120090.0,120080.0,0.75638798]
[1759430592765,1.61446979,120090.0,120080.0,0.83962198]
[1759430593659,1.61446979,120090.0,120080.0,0.41338909]
[1759430593660,1.93619868,120090.0,120080.0,0.41338909]
[1759430593858,1.95855396,120090.0,120080.0,7.909e-05]
[1759430594267,1.93619868,120090.0,120080.0,7.909e-05]
[1759430594765,1.96606058,120090.0,120080.0,7.909e-05]
[1759430596969,1.3226028,120090.0,120080.0,7.909e-05]
[1759430597360,1.96606058,120090.0,120080.0,7.909e-05]
[1759430597574,1.93619868,120090.0,120080.0,7.909e-05]
[1759430597867,1.95865353,120090.0,120080.0,7.909e-05]
[1759430600266,1.31519575,120090.0,120080.0,0.01338909]
[1759430600570,1.95865353,120090.0,120080.0,0.03465909]
[1759430601070,1.95865353,120090.0,120080.0,0.01338909]
[1759430601666,1.31519575,120090.0,120080.0,0.01338909]
[1759430601866,1.95865353,120090.0,120080.0,0.01338909]
[1759430602063,1.95865353,120090.0,120080.0,7.909e-05]
[1759430603771,1.95813353,120090.0,120080.0,0.01338909]
[1759430604070,1.63616464,120090.0,120080.0,0.11789319]
[1759430604268,1.31443575,120090.0,120080.0,0.11789319]
[1759430604564,1.95789353,120090.0,120080.0,0.03465909]
[1759430604766,1.95789353,120090.0,120080.0,0.01338909]
[1759430604965,1.95789353,120090.0,120080.0,7.909e-05]
[1759430606368,1.95798565,120090.0,120080.0,7.909e-05]
[1759430606680,1.31443575,120090.0,120080.0,7.909e-05]
[1759430606972,1.95798565,120090.0,120080.0,7.909e-05]
[1759430611976,1.95798565,120090.0,120080.0,0.08331319]
[1759430612571,0.55539575,120090.0,120080.0,0.08331319]
[1759430612776,1.95774565,120090.0,120080.0,0.09703319]
[1759430615179,1.9352908,120090.0,120080.0,0.09703319]
[1759430615578,1.95774565,120090.0,120080.0,0.09703319]
[1759430616078,1.19894565,120090.0,120080.0,0.09703319]
[1759430616278,1.9352108,120090.0,120080.0,0.11962319]
[1759430616479,1.1764908,120090.0,120080.0,0.09703319]
[1759430616681,1.9349308,120090.0,120080.0,0.09703319]
[1759430617279,1.1764908,120090.0,120080.0,0.09703319]
[1759430617480,1.9349308,120090.0,120080.0,0.09703319]
[1759430617976,1.1764908,120090.0,120080.0,0.11962319]
[1759430618174,0.85471585,120090.0,120080.0,0.11962319]
[1759430618670,1.61307585,120090.0,120080.0,0.11962319]
[1759430618874,0.85471585,120090.0,120080.0,0.11962319]
[1759430619185,1.61303585,120090.0,120080.0,0.11962319]
[1759430620570,1.61303575,120090.0,120080.0,0.11962319]
[1759430620771,0.5329408,120090.0,120080.0,0.44139814]
[1759430621082,1.2911808,120090.0,120080.0,0.84139814]
[1759430621380,1.2911808,120090.0,120080.0,0.51962319]
[1759430622277,1.61295575,120090.0,120080.0,0.51962319]
[1759430622485,1.61295575,120090.0,120080.0,0.11962319]
[1759430624272,1.2911808,120090.0,120080.0,0.11962319]
[1759430625978,0.38267774,120090.0,120080.0,0.84139814]
[1759430626182,1.18698474,120090.0,120080.0,0.84139814]
[1759430626573,1.18698474,120090.0,120080.0,0.51962319]
[1759430626785,1.18698474,120090.0,120080.0,0.84139814]
[1759430627083,0.75808,120090.0,120080.0,0.84139814]
[1759430628585,0.3608,120100.0,120090.0,0.119537]
[1759430628981,0.3608,120100.0,120090.0,0.84131195]
[1759430629387,1.11856,120100.0,120090.0,0.84131195]
[1759430630688,0.75776,120100.0,120090.0,0.84131195]
[1759430630891,0.75776,120100.0,120090.0,1.1630869]
[1759430631591,1.11872863,120110.0,120100.0,0.1195302]
[1759430631783,8.863e-05,120110.0,120100.0,0.44130515]
[1759430631988,8.863e-05,120110.0,120100.0,0.84130515]
[1759430632685,0.3608,120120.0,120110.0,0.1195233]
[1759430632886,0.3608,120120.0,120110.0,0.44129825]
[1759430633089,1.1186,120130.0,120120.0,0.1195164]
[1759430633290,1.1186,120130.0,120120.0,0.44129135]
[1759430634392,0.3608,120130.0,120120.0,1.1630663]
[1759430634987,1.11856,120140.0,120130.0,0.0969194]
[1759430635191,1.11856,120140.0,120130.0,0.44128435]
[1759430639595,0.75776,120140.0,120130.0,0.44128435]
[1759430639795,0.3608,120150.0,120140.0,0.1184725]
[1759430639995,1.11832,120150.0,120140.0,0.44024745]
[1759430640191,1.11832,120150.0,120140.0,0.84024745]
[1759430641491,0.3608,120150.0,120140.0,0.84024745]
[1759430641696,0.3608,120150.0,120140.0,0.1184725]
[1759430641890,0.3608,120150.0,120140.0,0.44024745]
[1759430645499,1.11816,120150.0,120140.0,0.44024745]
[1759430645900,1.11808,120150.0,120140.0,0.44024745]
[1759430652615,1.1176,120150.0,120140.0,0.44024745]
[1759430652810,1.18325315,120160.0,120150.0,0.1184656]
[1759430653009,1.20485825,120160.0,120150.0,0.44024055]
[1759430653816,1.18325315,120160.0,120150.0,0.44024055]
[1759430654010,1.20486405,120160.0,120150.0,0.44024055]
[1759430654215,1.2880497,120160.0,120150.0,0.44024055]
[1759430654615,1.204871,120160.0,120150.0,0.44024055]
[1759430655413,0.448071,120160.0,120150.0,0.7620155]
[1759430655610,0.398071,120160.0,120150.0,0.7620155]
[1759430655812,0.3108,120160.0,120150.0,0.7620155]
[1759430656116,1.06744,120160.0,120150.0,0.7620155]
[1759430657420,0.51176163,120170.0,120160.0,0.1184587]
[1759430657421,1.18522973,120170.0,120160.0,0.1184587]
[1759430657615,1.20687812,120170.0,120160.0,0.44023365]
[1759430661019,1.20655812,120170.0,120160.0,0.44023365]
[1759430661717,0.02164839,120170.0,120160.0,0.44023365]